Cogmind - Beta 16 --- EXPLORER MODE // 2025.12.15 @ 16:33:23 Player: K.K.Y. Result: Destroyed by TV-G9J(R) with Subdweller Machine Gun Performance ------------- Evolutions (0) 0 Regions Visited (3) 600 Robots Destroyed (25) 125 Value Destroyed (571) 571 Prototype IDs (13) 260 Alien Tech Used (0) 0 Bonus (0) 0 TOTAL SCORE: 1556 Bonus ------- None Cogmind --------- Core Integrity 0/250 Matter 300/300 Energy 100/100 System Corruption 0% Temperature Cool (0) Movement Flying (1640) Ox20 Location -10/Subcaves Parts ------- > --- POWER (1) -------- (None) > --- PROPULSION (3) --- Flight Unit > --- UTILITY (2) ------ Huge Storage Unit > --- WEAPON (2) ------- Makeshift Hammer > --- INVENTORY (25) --- Meta Core Small Storage Unit Machine Analyzer Sensor Array Improved Terrain Scanner SUBCON Basin (Full) Peak State ------------ > --- POWER ------------ (None) > --- PROPULSION ------- Flight Unit Flight Unit Flight Unit > --- UTILITY ---------- Huge Storage Unit Splice Drone Bay > --- WEAPON ----------- Makeshift Hammer > --- INVENTORY -------- Meta Core Small Storage Unit Machine Analyzer Improved Terrain Scanner SUBCON Basin [Rating: 35] Favorites ----------- Power Ion Engine Engine Ion Engine Propulsion Wheel Wheel Wheel Flight Unit Flight Unit Utility Sensor Array Device Sensor Array Storage Huge Storage Unit Processor Signal Interpreter Weapon Small Laser Energy Gun Small Laser Ballistic Cannon Battle Cannon Special Weapon Mining Laser Impact Weapon Makeshift Hammer Build | -11 -10 -10 -10 ------- Run | Yrd Mat Min Sub Slots Evolved 1 | . 1 . . Power . | . . . . Propulsion 1 | . 1 . . Utility . | . . . . Weapon . | . . . . Parts Attached 23 | 8 4 1 10 Power 3 | 1 1 . 1 Engine 3 | 1 1 . 1 Core . | . . . . Reactor . | . . . . Propulsion 10 | 3 2 . 5 Treads . | . . . . Leg . | . . . . Wheel 5 | 3 2 . . Hover . | . . . . Flight 5 | . . . 5 Utility 4 | 2 . 1 1 Device 2 | 1 . 1 . Storage 1 | . . . 1 Processor 1 | 1 . . . Hackware . | . . . . Protection . | . . . . Artifact . | . . . . Weapon 6 | 2 1 . 3 Energy Gun 3 | 2 1 . . Energy Cannon . | . . . . Ballistic Gun . | . . . . Ballistic Cannon 1 | . . . 1 Launcher . | . . . . Special Weapon 1 | . . . 1 Impact Weapon 1 | . . . 1 Slashing Weapon . | . . . . Piercing Weapon . | . . . . Special Melee Weapon . | . . . . Unidentified Prototypes 1 | . . 1 . Parts Lost 8 | . . . 8 Power 2 | . . . 2 Propulsion 2 | . . . 2 Utility 1 | . . . 1 Weapon 3 | . . . 3 Highest Loss Streak 2 | . . . 2 To Critical Strikes . | . . . . Average Backups 4 | . 3 5 4 Power . | . . . . Propulsion . | . . . . Utility 3 | . 2 4 3 Weapon . | . 1 1 . Tool/Special . | . . . . Unused Backups 5 | . 1 . 4 Power . | . . . . Propulsion . | . . . . Utility 4 | . 1 . 3 Weapon . | . . . . Tool/Special 1 | . . . 1 Average Slot Usage (%) 84 | . 92 100 77 Engine 7 | . 12 12 4 Wheel 17 | . 29 37 9 Flight 16 | . . . 25 Device 15 | . 12 19 14 Storage 4 | . . . 7 Processor 2 | . 12 4 . Energy Gun 11 | . 25 25 5 Impact Weapon 5 | . . . 8 Peak Build Rating 35 | 7 8 14 35 Average Rating 19 | 4 7 11 25 On Entrance 7 | . 7 8 14 Avg Prop Armor Cover (%) . | . . . . Naked Turns . | . . . . Heaviest Build 91 | 7 9 17 91 Greatest Support 30 | 26 30 30 30 Greatest Overweight (x) 21 | 1 . . 21 Average Overweight (x) . | . . . 1 Largest Inventory Capacity 25 | 5 5 5 25 Average Capacity 12 | 5 5 5 16 Most Carried 21 | 4 5 5 21 Average Carried 10 | 1 3 5 13 Final Capacity 25 | 5 5 5 25 Final Carried 20 | 2 5 5 20 Class Distribution -------------------- 100% | Hacker-Mutant Dominant Class ---------------- Hacker-Mutant | -10/Materials Hacker-Mutant | -10/Mines Hacker-Mutant | -10/Subcaves Resources | -11 -10 -10 -10 ----------- Run | Yrd Mat Min Sub Matter Collected 465 | 256 74 10 125 Remotely . | . . . . Salvage Created 853 | 114 389 . 350 Parts 41 | 7 17 . 17 Haulers Intercepted 2 | . 2 . . Recyclers Shooed . | . . . . Parts Field Recycled . | . . . . Retrieved Matter . | . . . . Parts Self-Destructed . | . . . . Prevented . | . . . . Parts Restored . | . . . . Kills | -11 -10 -10 -10 ------- Run | Yrd Mat Min Sub Combat Hostiles Destroyed 14 | . 3 . 11 Guns 8 | . 2 . 6 Cannons 3 | . . . 3 Classes Destroyed 9 | 2 4 . 3 Tunneler 2 | 2 . . . Hauler 2 | . 2 . . Recycler 2 | 1 1 . . Mechanic 1 | . 1 . . Turret 2 | . . . 2 Watcher 2 | . 2 . . Swarmer 4 | . . . 4 Grunt 5 | . 3 . 2 Subdweller 5 | . . . 5 Best Kill Streak 6 | 2 3 . 6 Combat Bots Only 4 | . 2 . 4 Max Kills in Single Turn 1 | 1 1 . 1 Gunslinging . | . . . . Exploded . | . . . . Melee . | . . . . Uniques/NPCs Destroyed . | . . . . Combat | -11 -10 -10 -10 -------- Run | Yrd Mat Min Sub Hostile Shots Fired 182 | . 30 . 152 Missed 73 | . 13 . 60 Hits 109 | . 17 . 92 Projectile 109 | . 17 . 92 Critical Strikes 2 | . . . 2 Damage Taken 1032 | . 116 . 916 Core 255 | . 23 . 232 Absorbed by Shields . | . . . . Ignored by Resistances 559 | . 75 . 484 Core Remaining (%) 100 | 100 . . . Volleys Fired 78 | 6 29 2 41 Largest 2 | 2 2 2 2 Hottest 140 | 90 90 90 140 Shots Fired 137 | 12 57 4 64 Gun 126 | 12 57 4 53 Cannon . | . . . . Launcher . | . . . . Special 11 | . . . 11 Kinetic . | . . . . Thermal 137 | 12 57 4 64 Explosive . | . . . . Electromagnetic . | . . . . Robot Hit Streak 33 | 10 33 7 20 Robot Miss Streak 1 | . 1 . 1 Penetration Max . | . . . . Secondary Targets 1 | . . . 1 Max Gunslinging Chain 1 | . . . 1 Shots Hit Robots 110 | 10 46 4 50 Core Hits 43 | 4 17 . 22 Critical Kills . | . . . . Critical Parts Destroyed 1 | . . . 1 Critical Strikes 6 | 1 3 . 2 Burn 5 | 1 3 . 1 Smash 1 | . . . 1 Melee Attacks 7 | . . . 7 Impact 7 | . . . 7 Slashing . | . . . . Piercing . | . . . . Sneak Attacks . | . . . . Combat Hostiles . | . . . . Follow-up Attacks . | . . . . Damage Inflicted 1510 | 117 558 46 789 Guns 1190 | 117 558 46 469 Cannons . | . . . . Explosions . | . . . . Melee 224 | . . . 224 Ramming . | . . . . Kinetic . | . . . . Thermal 1286 | 117 558 46 565 Explosive . | . . . . Electromagnetic . | . . . . Impact 224 | . . . 224 Slashing . | . . . . Piercing . | . . . . Highest Corruption . | . . . . Average Corruption . | . . . . Corruption Purged . | . . . . Corruption Blocked . | . . . . Overload Shots . | . . . . Overflow Damage 64 | . . . 64 Projectiles 4 | . . . 4 Explosions . | . . . . Melee 60 | . . . 60 Knockbacks 2 | . . . 2 Impact 2 | . . . 2 Kinetic . | . . . . Secondary . | . . . . Self-Inflicted Damage . | . . . . Shots . | . . . . Rammed . | . . . . Targets Rammed . | . . . . Kicked . | . . . . Crushed . | . . . . Highest Temperature 378 | 60 378 30 . Average Temperature 84 | 25 98 17 . Received Heat Transfer 411 | . 111 . 300 Effects 1 | . 1 . . Shutdowns 1 | . 1 . . Siege Activations . | . . . . Martial Activations . | . . . . Shielding Activations . | . . . . Robots Disrupted . | . . . . Combat Hostiles . | . . . . Robots Corrupted 2 | . . . 2 Combat Hostiles 2 | . . . 2 Parts Fried 1 | . . . 1 Impact Corruptions 2 | . . . 2 Robots Melted 1 | . 1 . . Combat Hostiles 1 | . 1 . . Parts Melted 5 | 2 3 . . Heat Transferred 3672 | 396 1721 124 1431 Parts Sabotaged . | . . . . Parts Stolen . | . . . . Parts Stripped . | . . . . Power Chain Reactions . | . . . . Alert | -11 -10 -10 -10 ------- Run | Yrd Mat Min Sub Maximum Alert Level . | . . . . Low Security (%) 100 | 100 100 100 . Level 1 . | . . . . Level 2 . | . . . . Level 3 . | . . . . Level 4 . | . . . . Level 5 . | . . . . High Security . | . . . . Max Security . | . . . . Peak Influence 50 | 5 50 . . Initial . | . . . . Average 2 | 2 5 . . Influence Increases 338 | 15 123 . 200 Destroy 0b10 Robot/C 220 | . 60 . 160 Destroy 0b10 Robot/NC 45 | 15 30 . . Destroy Leader 28 | . 18 . 10 Lose Combat Pursuer 45 | . 15 . 30 Influence Decreases 338 | 15 123 . 200 Time Decay 318 | 15 123 . 180 Lost Part 20 | . . . 20 Squads Dispatched . | . . . . Investigation . | . . . . Extermination . | . . . . Reinforcement . | . . . . Assault . | . . . . Garrison . | . . . . Intercept . | . . . . Searches Triggered . | . . . . Construction Impeded . | . . . . Haulers Reinforced . | . . . . Active Scanning Responses . | . . . . Cargo Convoy Interrupts . | . . . . Stealth | -11 -10 -10 -10 --------- Run | Yrd Mat Min Sub Distress Signals 1 | . 1 . . Communications Jammed . | . . . . Distress Signals . | . . . . Times Spotted 23 | . 7 . 16 Peak Tracking Total 6 | . 4 . 6 Tactical Retreats 2 | . 1 . 1 Traps | -11 -10 -10 -10 ------- Run | Yrd Mat Min Sub Traps Triggered 3 | . . . 3 Indirectly . | . . . . Trap Hack Attempts . | . . . . Triggered . | . . . . Disarmed . | . . . . Reprogrammed . | . . . . Reused . | . . . . Traps Extracted . | . . . . Installed . | . . . . Triggered . | . . . . Machines | -11 -10 -10 -10 ---------- Run | Yrd Mat Min Sub Machines Disabled 1 | . . . 1 Max in Single Turn 1 | . . . 1 Machines Repaired . | . . . . Machines Dismantled . | . . . . Machines Sabotaged . | . . . . Overloaded Fab Kills . | . . . . Hacking | -11 -10 -10 -10 --------- Run | Yrd Mat Min Sub Machines Accessed 4 | . . 1 3 Terminals . | . . . . Fabricators . | . . . . Repair Stations . | . . . . Recycling Units . | . . . . Scanalyzers . | . . . . Garrison Access . | . . . . Total Hacks 5 | . . 1 4 Successful 5 | . . 1 4 Failed . | . . . . Catastrophic . | . . . . Database Lockouts . | . . . . Manual . | . . . . Terminals . | . . . . Fabricators . | . . . . Repair Stations . | . . . . Recycling Units . | . . . . Scanalyzers . | . . . . Garrison Access . | . . . . Terminal Hacks 5 | . . 1 4 Record 1 | . . . 1 Open Door 2 | . . 1 1 Proto ID Catalog 1 | . . . 1 Release Object 1 | . . . 1 Fabricator Hacks . | . . . . Repair Station Hacks . | . . . . Recycling Unit Hacks . | . . . . Scanalyzer . | . . . . Garrison Access Hacks . | . . . . Unauthorized Hacks . | . . . . Terminals . | . . . . Fabricators . | . . . . Repair Stations . | . . . . Recycling Units . | . . . . Scanalyzers . | . . . . Garrison Access . | . . . . Data Cores Recovered . | . . . . Used . | . . . . Hacking Detections . | . . . . Full Trace Events . | . . . . Feedback Events . | . . . . Feedback Blocked . | . . . . Robot Schematics Acquired . | . . . . Robots Built . | . . . . Authchips . | . . . . Time . | . . . . Total Robot Build Rating . | . . . . Part Schematics Acquired . | . . . . Parts Built . | . . . . Authchips . | . . . . Time . | . . . . Total Part Build Rating . | . . . . Part Studies Acquired . | . . . . Parts Repaired . | . . . . Time . | . . . . Parts Recycled . | . . . . Recycled Matter . | . . . . Retrieved Matter . | . . . . Retrieved Components . | . . . . Parts Scanalyzed . | . . . . Part Schematics Acquired . | . . . . Parts Damaged . | . . . . Bothacking | -11 -10 -10 -10 ------------ Run | Yrd Mat Min Sub Used RIF Installer . | . . . . Robots Hacked . | . . . . Non-combat . | . . . . Combat . | . . . . Robot Hacks Applied . | . . . . Relay Couplers Released . | . . . . Fabnet Peak Effective % . | . . . . Robots Rewired . | . . . . Allies Hacked . | . . . . Hacks Repelled . | . . . . Allies | -11 -10 -10 -10 -------- Run | Yrd Mat Min Sub Total Allies . | . . . . Largest Group . | . . . . Highest-Rated Group . | . . . . Highest-Rated Ally . | . . . . Total Orders . | . . . . Ally Attacks . | . . . . Total Damage . | . . . . Kills . | . . . . Allies Corrupted . | . . . . Allies Melted . | . . . . Intel | -11 -10 -10 -10 ------- Run | Yrd Mat Min Sub Active Infowar (turns) 2251 | 73 562 661 955 Sensors 2251 | 73 562 661 955 Robot Analysis Total . | . . . . Derelict Logs Recovered 2 | . . . 2 Drone Launches . | . . . . Drone Recoveries . | . . . . Exploration | -11 -10 -10 -10 ------------- Run | Yrd Mat Min Sub Turns Passed 3661 | 86 562 661 2352 Spaces Moved 2799 | 58 548 693 1500 Core 51 | 46 . . 5 Treads . | . . . . Legs . | . . . . Wheels 1777 | 12 548 693 524 Hover . | . . . . Flight 971 | . . . 971 Fastest Speed 34 | 50 80 80 34 Average Speed 112 | 82 80 80 140 Slowest Speed 1720 | 100 80 80 1720 Overloaded Moves . | . . . . Propulsion Burnouts . | . . . . Robots Hopped . | . . . . Potential Cave-ins . | . . . . Cave-ins Triggered . | . . . . Exploration Rate (%) 58 | 5 66 95 69 Regions Visited 3 Branch Regions 2 Pre-discovered Areas 1 | . . 1 . Known Exits Taken 3 | 1 1 1 . Unknown Exits Taken . | . . . . Scrap Searched 4 | . . . 4 Spaces Dug . | . . . . Terrain Destroyed 1 | . . . 1 Melee . | . . . . Projectile 1 | . . . 1 AOE . | . . . . Terrain Rammed . | . . . . Walls Destroyed . | . . . . Machines Disabled . | . . . . Actions | -11 -10 -10 -10 --------- Run | Yrd Mat Min Sub Total 3139 | 83 614 795 1647 Wait 192 | . 23 99 70 Move 2796 | 57 547 692 1500 Hop . | . . . . Pick Up 23 | 10 7 . 6 Fast Attach 5 | . 1 1 3 Attach 13 | 7 . . 6 Detach 3 | . . 1 2 Swap 10 | 2 3 . 5 Drop 12 | 1 4 . 7 Fire 78 | 6 29 2 41 Melee 7 | . . . 7 Ram . | . . . . Kick . | . . . . Crush . | . . . . Escape Stasis . | . . . . Rewire . | . . . . Trap . | . . . . Miscellaneous . | . . . . Route ------- -11/Scrapyard -10/Materials (discovered 3 exits: *Mat x2 / *Min) -10/Mines (discovered 3 exits: *Mat x2 / *Sub) -10/Subcaves (discovered 2 exits: *Mat / *Rec) History --------- Turn | Location | Event 32 | -11/Scrapyard | Identified exit to Materials 32 | -11/Scrapyard | Discovered exit to Materials (range 13) 87 | -11/Scrapyard | Entered Materials 87 | -10/Materials | Evolved 1 slot: Propulsion x1 312 | -10/Materials | Build established: Hacker-Mutant 327 | -10/Materials | Identified exit to Materials 327 | -10/Materials | Discovered exit to Materials (range 6) 448 | -10/Materials | Identified exit to Mines 448 | -10/Materials | Discovered exit to Mines (range 15) 623 | -10/Materials | Discovered exit to Materials (range 16) 649 | -10/Materials | Entered Mines 802 | -10/Mines | Found a Scrap Suit stashed away for nefarious purposes 820 | -10/Mines | Discovered exit to Materials (range 13) 838 | -10/Mines | Learned location of Storage (-8) 903 | -10/Mines | Found the Drone Emporium 906 | -10/Mines | Found Prototype Device 906 | -10/Mines | Identified Splice Drone Bay 942 | -10/Mines | Discovered exit to Materials (range 5) 975 | -10/Mines | Identified exit to Subcaves 975 | -10/Mines | Discovered exit to Subcaves (range 9) 1310 | -10/Mines | Entered Subcaves 1311 | -10/Subcaves | Approached by a straggling Scientist 1456 | -10/Subcaves | Shifting Twisted Machinery released Battle Cannon 1496 | -10/Subcaves | Shifting Twisted Machinery released Shrapnel Trap 1558 | -10/Subcaves | Learned location of 1 exit from Materials 1622 | -10/Subcaves | Ambushed by Subdwellers from Twisted Machinery 1674 | -10/Subcaves | Identified exit to Materials 1674 | -10/Subcaves | Discovered exit to Materials (range 5) 1795 | -10/Subcaves | Identified exit to Recycling 1795 | -10/Subcaves | Discovered exit to Recycling (range 9) 1956 | -10/Subcaves | Learned Materials stockpile data 2067 | -10/Subcaves | Visited 4L-MR0's lab 2075 | -10/Subcaves | Found Meta Core 2266 | -10/Subcaves | Found SUBCON Basin 3162 | -10/Subcaves | Core integrity fell below 50% 3624 | -10/Subcaves | Core integrity fell below 20% 3662 | -10/Subcaves | Destroyed by TV-G9J(R) with Subdweller Machine Gun Last Messages --------------- 03391_ 08-079(R) suffers critical hit (Smash). 03391_ Destroyed Sub. Power Source. 03391_ 08-079(R) system corrupted by crushing effect. 03391_ 08-079(R) knocked back. 03392_ 08-079(R) system terminally corrupted. 03392_ Sub. Monowheel fried. 03402_ Acquired 5 matter. 03492_ Subatomizers dissect the Heat Sink. 03503_ Subatomizers dissect the Sub. Power Source. 03602_ Subatomizers dissect the Sub. Laser. 03629_ Flight Unit destroyed. 03630_ Subatomizers dissect the Sub. Laser, destroying it. 03640_ Subatomizers dissect the Sub. Power Source, destroying it. 03644_ Ion Engine destroyed. 03655_ Subatomizers dissect the Sub. Beam Cannon. Map ----- +----------------------------------------------------+ | ?????????????????????????????????????????????????? | | ?????????????????????????????????????????????????? | | ?????????????????????????????????????????????????? | | ?????????????????????????????????????????????????? | | ?????????????????????????????????????????????????? | | ?????????????????????????????????????????????????? | | ?????????????????????????????????????????????????? | | ?????????????????????????????????????????????????? | | ?????????????????????????????????????????????????? | | ?????????????????????????????????????????????????? | | ?????????????????????????????????????????????????? | | ?????????????????????????????????????????????????? | | ?????????????????????????????????????????????????? | | ?????????????????????????????????????????????????? | | ?????????????????????????????????###?????????????? | | ????????????????????????????????? ##????????????? | | ????????????????????????????????# ##???????????? | | ????????????????????????????????# #???????????? | | ???????????????????????????????## #???????????? | | ?????????????????????????####### #????????????? | | ???????????????????????### #?????????????? | | ???????????????????????# #?????????????? | | ???????????????????????# ] ##?###????????? | | ???????????????????????# * %%& ## ##???????? | | ???????????????????????#!% && #???????? | | ???????????????????????# @ R ##???????? | | ??????????????????????#; ## ####????????? | | ??????????????????????# ### ##???????????? | | ?????????????????????# ?## ######???????? | | ????????????????????# #??## ## ####??? # | | ???????????????????# ##???# ## # | | ???????????????????## #?????# #? | | ????????????????????# #??????# ##? | | ???????????????????? ??????# ### ### #?? | | ???????????????????# ??????# #### ##??????? | | ???????????????????## ????? ### ##??????? | | ????????????????????# ??? ## #??????? | | ???????????????????? ??? ### ##??????? | | ???????????????????? ??? ## ##?## ####????? | | ??????????????????????? #####?###???## % #????? | | ??????????????????????? ?????????#######& #????? | | ?????????????????????????????????# ###????? | | ?????????????????????????????????# "#?????? | | ?????????????????????????????????# ## #?????? | | ????????????????????????????????## ### #??#??? | | ??????????????????????????????### ## ### #??? | | ?????????????????????????????## """"""" #??? | | ?????????????????????????????#""" "" #??? | | ?????????????????????????????# """"" #??? | | ?????????????????????????????##"""" " ##??? | +----------------------------------------------------+ Best States ------------- Heat Dissipation 25 Energy Generation 10 Energy Capacity 250 Matter Stores 300 Matter Capacity 300 Sight Range 16 Robot Scan Range 14 Terrain Scan Density 10 Resistance: KI 35 Resistance: TH 35 Resistance: EX 35 Resistance: EM 35 Resistance: I 35 Resistance: S 35 Resistance: P 35 Evasion (%) 63 Offensive Hacking 20 Item Schematics ----------------- None Robot Schematics ------------------ None Fabricated ------------ Nothing Repaired ---------- Nothing Studied --------- None Alien Tech Used ----------------- None Achievements -------------- None Challenges ------------ None Game ------ Seed FieldZeronetRay Manual? 0 Play Time 00:16:19 Cumulative 199.2 hours Start 2025.12.15 @ 16:15:55 End 2025.12.15 @ 16:33:23 Sessions 1 Manual Loads 0 Difficulty Explorer Special Mode None Game No. 299 Rogue 0 Adventurer 0 Explorer 299 Win Type - Total 0 Types 0/0/0/0/0/0/0/0/0/0 Lore% 71 Gallery% 67 Achievement% 53 Wizard Run 0 Options --------- Layout 1 ASCII 0 Keyboard 0 Movement Mouse Keybinds 0 Fullscreen 1 Font 24/Smallcaps Map View 50x35 Zoom Use 0% Tactical HUD 1 Map Filters NONE Filters NONE Steam 1 RUN: 8f38e352-53f6-4d2a-a770-9f8629c4df52